bitfinex/quotes_BTCUSD_20240828
["timestamp","ask_amount","ask_price","bid_price","bid_amount"]
[1724823801469,0.04099372,59618.0,59615.0,0.167741]
[1724823801785,0.335365,59617.0,59615.0,0.167741]
[1724823801990,0.1,59616.0,59615.0,0.167741]
[1724823802242,0.435365,59616.0,59615.0,0.167741]
[1724823802661,0.44177832,59616.0,59615.0,0.167741]
[1724823802992,0.44177832,59616.0,59615.0,0.168741]
[1724823803884,0.44177832,59616.0,59615.0,0.1696408]
[1724823804495,0.44177832,59616.0,59615.0,0.1686408]
[1724823804826,0.44177832,59616.0,59615.0,0.1696408]
[1724823804994,0.44877832,59616.0,59615.0,0.1696408]
[1724823805398,0.45777832,59616.0,59615.0,0.1706408]
[1724823809004,0.45077832,59616.0,59615.0,0.1696408]
[1724823809242,0.44677832,59616.0,59615.0,0.1686408]
[1724823810671,0.45377832,59616.0,59615.0,0.1696408]
[1724823811491,0.44877832,59616.0,59615.0,0.1696408]
[1724823811929,0.46633841,59616.0,59615.0,0.1696408]
[1724823812374,0.47333841,59616.0,59615.0,0.1706408]
[1724823812713,0.46633841,59616.0,59615.0,0.5051268]
[1724823812913,0.46633841,59616.0,59615.0,0.8223268]
[1724823813116,0.47133841,59616.0,59615.0,0.8223268]
[1724823814114,0.47133841,59616.0,59615.0,1.3492128]
[1724823818536,0.94683841,59616.0,59615.0,0.1696428]
[1724823818745,0.66123841,59616.0,59615.0,0.5051288]
[1724823818969,0.66123841,59616.0,59615.0,0.1696428]
[1724823819847,0.66123841,59616.0,59615.0,0.5051288]
[1724823820225,0.66123841,59616.0,59615.0,0.1696428]
[1724823820545,0.66123841,59616.0,59615.0,0.5051288]
[1724823820685,0.66123841,59616.0,59615.0,0.0018998]
[1724823820892,0.66123841,59616.0,59615.0,0.1696428]
[1724823822968,0.47133841,59616.0,59615.0,0.1696428]
[1724823824516,0.49762153,59616.0,59615.0,0.1696428]
[1724823825135,0.49762153,59616.0,59615.0,0.5051288]
[1724823825569,0.49762153,59616.0,59615.0,0.0018998]
[1724823826219,1.62192153,59616.0,59615.0,0.0018998]
[1724823826437,1.81692153,59616.0,59615.0,0.0018998]
[1724823826642,2.15240153,59616.0,59615.0,0.0018998]
[1724823826886,2.28294286,59616.0,59615.0,0.0018998]
[1724823827471,2.15740153,59616.0,59615.0,0.0018998]
[1724823827955,2.15740153,59616.0,59615.0,0.0008998]
[1724823827956,2.15040153,59616.0,59615.0,0.0008998]
[1724823828182,2.15940153,59616.0,59615.0,0.0018998]
[1724823828370,2.29692911,59616.0,59615.0,0.0028998]
[1724823828582,2.17140153,59616.0,59615.0,0.0028998]
[1724823828981,2.15940153,59616.0,59615.0,0.0018998]
[1724823829185,2.25960417,59616.0,59615.0,0.0018998]
[1724823829413,2.27160417,59616.0,59615.0,0.0028998]
[1724823830286,2.27159003,59616.0,59615.0,0.0028998]
[1724823831887,2.25402994,59616.0,59615.0,0.0028998]
[1724823833252,2.25402994,59616.0,59601.0,0.671126]
[1724823833253,0.838925,59600.0,59589.0,0.3143]
[1724823833478,0.97000312,59600.0,59590.0,0.50540786]
[1724823833711,0.46887496,59600.0,59590.0,0.50540786]
[1724823833965,0.46887496,59600.0,59599.0,0.3151998]
[1724823834392,0.63665996,59600.0,59599.0,0.3151998]
[1724823834608,0.97222996,59600.0,59599.0,0.0008998]
[1724823834839,0.98622996,59600.0,59599.0,0.0018998]
[1724823835066,0.65065996,59600.0,59599.0,0.0008998]
[1724823835303,1.00022996,59600.0,59599.0,0.0008998]
[1724823835533,1.00022996,59600.0,59599.0,0.0018998]
[1724823835534,1.00522996,59600.0,59599.0,0.0018998]
[1724823835737,0.99122996,59600.0,59599.0,0.0018998]
[1724823836177,0.99922996,59600.0,59599.0,0.0018998]
[1724823836394,1.80569996,59600.0,59599.0,0.0018998]
[1724823836887,0.47687496,59600.0,59599.0,0.0008998]
[1724823837121,0.65465996,59600.0,59599.0,0.3008998]
[1724823837478,0.65465996,59600.0,59599.0,0.2758998]
[1724823837895,0.48687496,59600.0,59599.0,0.2758998]
[1724823838092,0.65465996,59600.0,59599.0,0.2758998]
[1724823838372,0.48687496,59600.0,59599.0,0.2758998]
[1724823838782,0.46059184,59600.0,59599.0,0.2758998]
[1724823839208,0.62837684,59600.0,59599.0,0.2758998]
[1724823840439,0.96394684,59600.0,59599.0,0.2758998]
[1724823840680,0.335599,59595.0,59590.0,0.3182]
[1724823840924,0.22679372,59597.0,59590.0,0.3182]
[1724823840925,0.167805,59593.0,59590.0,0.3182]
[1724823841158,0.503173,59592.0,59590.0,0.3182]
[1724823841414,0.50929743,59592.0,59590.0,0.3182]
[1724823841639,0.34148943,59592.0,59590.0,0.3182]
[1724823841873,0.50929743,59592.0,59587.0,0.3253]
[1724823842554,0.50929743,59592.0,59587.0,0.493121]
[1724823843498,0.34148943,59592.0,59588.0,0.672318]
[1724823843923,0.34148943,59592.0,59588.0,0.5045]
[1724823844356,0.34148943,59592.0,59588.0,0.672318]
[1724823845436,0.34148943,59592.0,59589.0,0.167816]
[1724823845897,0.34148943,59592.0,59588.0,0.5045]
[1724823846586,0.34248943,59592.0,59588.0,0.5045]
[1724823846908,0.34148943,59592.0,59588.0,0.5045]
[1724823847079,0.34148943,59592.0,59588.0,0.672318]
[1724823847426,0.34248943,59592.0,59588.0,0.5045]
[1724823847658,0.34248943,59592.0,59588.0,0.672318]
[1724823849512,0.34248943,59592.0,59588.0,0.5045]
[1724823849715,0.04099372,59590.0,59584.0,0.3076]
[1724823849934,0.335365,59589.0,59584.0,0.3076]
[1724823850138,0.16782,59588.0,59584.0,0.3076]
[1724823850384,0.335365,59587.0,59584.0,0.3076]
[1724823850517,0.435365,59587.0,59584.0,0.3076]
[1724823850751,0.00600957,59586.0,59584.0,0.475428]
[1724823850979,0.335365,59585.0,59584.0,0.475428]
[1724823851520,0.34137457,59585.0,59584.0,0.475428]
[1724823851911,0.34137457,59585.0,59584.0,0.3076]
[1724823852119,0.34137457,59585.0,59583.0,0.008998]
[1724823852320,0.53552492,59585.0,59583.0,0.008998]
[1724823852854,0.36769792,59585.0,59583.0,0.008998]
[1724823853035,0.16783,59584.0,59583.0,0.008998]
[1724823853242,0.838855,59584.0,59583.0,0.008998]
[1724823853447,0.60918809,59584.0,59583.0,0.008998]
[1724823854603,0.61418809,59584.0,59583.0,0.008998]
[1724823855538,0.61818809,59584.0,59583.0,0.008998]
[1724823855771,1.33050181,59584.0,59583.0,0.008998]
[1724823856417,1.32550181,59584.0,59583.0,0.008998]
[1724823856659,1.33050181,59584.0,59583.0,0.008998]
[1724823857097,1.32650181,59584.0,59583.0,0.008998]
[1724823857507,1.33050181,59584.0,59583.0,0.008998]
[1724823859874,1.35680026,59584.0,59583.0,0.008998]
[1724823863495,1.02114026,59584.0,59583.0,0.008998]
[1724823863948,0.47665654,59584.0,59583.0,0.321398]
[1724823864129,0.45035809,59584.0,59583.0,0.824897]
[1724823864376,0.35035809,59584.0,59583.0,1.160563]
[1724823864827,0.35035809,59584.0,59583.0,1.688729]
[1724823865475,0.35031251,59584.0,59583.0,1.688729]
[1724823866356,0.35031251,59584.0,59583.0,1.85728064]
[1724823866782,0.344365,59584.0,59583.0,1.85728064]
[1724823867451,0.335365,59584.0,59583.0,1.85728064]
[1724823867643,0.339365,59584.0,59583.0,1.85728064]
[1724823867967,0.335365,59584.0,59583.0,1.85728064]
[1724823868414,0.337365,59584.0,59583.0,1.85728064]
[1724823869149,0.337365,59584.0,59583.0,1.688729]
[1724823870235,0.337365,59584.0,59583.0,2.024395]
[1724823871923,0.337365,59584.0,59583.0,1.862395]
[1724823872129,0.337365,59584.0,59583.0,1.700395]
[1724823872351,0.337365,59584.0,59581.0,0.02487644]
[1724823872575,0.337365,59584.0,59580.0,0.0008998]
[1724823872804,0.00597088,59583.0,59582.0,0.509342]
[1724823873048,0.00597088,59583.0,59582.0,1.180684]
[1724823873254,0.00597088,59583.0,59582.0,1.32466674]
[1724823873468,0.00597088,59583.0,59582.0,1.174848]
[1724823873670,0.336365,59584.0,59583.0,0.839165]
[1724823873880,0.337365,59584.0,59583.0,0.872825]
[1724823874089,0.336365,59584.0,59583.0,0.872825]
[1724823874334,0.337365,59584.0,59583.0,0.872825]
[1724823874554,0.336365,59584.0,59583.0,0.872825]
[1724823874769,0.335365,59584.0,59583.0,0.871825]
[1724823874978,0.335365,59584.0,59583.0,1.183125]
[1724823875414,0.335365,59584.0,59583.0,1.376525]
[1724823875598,0.336365,59584.0,59583.0,1.376525]
[1724823876548,0.337184,59584.0,59583.0,1.376525]
[1724823876782,0.338184,59584.0,59583.0,1.050859]
[1724823878326,0.338184,59584.0,59583.0,1.017199]
[1724823879001,0.338184,59584.0,59583.0,1.352865]
[1724823879173,0.34512542,59584.0,59583.0,1.352865]
[1724823879379,0.338184,59584.0,59583.0,1.352865]
[1724823879762,0.338184,59584.0,59583.0,1.017199]
[1724823880157,0.338184,59584.0,59583.0,0.01]
[1724823880902,0.34514093,59584.0,59583.0,0.01]
[1724823881218,0.34314093,59584.0,59582.0,0.3117009]
[1724823881539,0.34414093,59584.0,59583.0,0.004]
[1724823881737,0.34314093,59584.0,59583.0,0.004]
[1724823882183,0.34414093,59584.0,59583.0,0.004]
[1724823882837,0.34414093,59584.0,59582.0,0.0009009]
[1724823883258,0.34414093,59584.0,59583.0,0.004]
[1724823883884,0.66534093,59584.0,59582.0,0.0009009]
[1724823884064,0.66534093,59584.0,59582.0,0.0049009]
[1724823884442,0.66634093,59584.0,59582.0,0.0049009]
[1724823884621,0.66534093,59584.0,59582.0,0.0009009]
[1724823884873,0.67034093,59584.0,59582.0,0.0009009]
[1724823885006,0.66534093,59584.0,59582.0,0.0009009]
[1724823885405,0.67034093,59584.0,59582.0,0.0009009]
[1724823886275,0.67434093,59584.0,59582.0,0.0009009]
[1724823886672,0.67034093,59584.0,59582.0,0.0009009]
[1724823887091,0.67434093,59584.0,59582.0,0.0009009]
[1724823889437,0.686699,59583.0,59582.0,0.0009009]
[1724823889636,1.122064,59583.0,59582.0,0.0009009]
[1724823889849,1.1290086,59583.0,59582.0,0.0009009]
[1724823891015,0.7963426,59583.0,59582.0,0.0009009]
[1724823891233,0.8001406,59583.0,59582.0,0.0009009]
[1724823891877,0.7961406,59583.0,59582.0,0.0009009]
[1724823892371,0.6295096,59583.0,59582.0,0.0009009]
[1724823892630,0.7973426,59583.0,59582.0,0.0009009]
[1724823892840,0.8003426,59583.0,59582.0,0.0009009]
[1724823893934,0.6171426,59583.0,59582.0,0.0009009]
[1724823895856,0.4493096,59583.0,59582.0,0.0009009]
[1724823896547,0.6171426,59583.0,59582.0,0.0009009]
[1724823896984,0.4493096,59583.0,59582.0,0.0009009]
[1724823897207,0.6171426,59583.0,59582.0,0.0009009]
[1724823899772,0.9387426,59583.0,59582.0,0.0009009]
[1724823900251,1.2744086,59583.0,59582.0,0.0009009]
[1724823900487,1.1246426,59583.0,59582.0,0.0009009]
[1724823900958,1.22642741,59583.0,59582.0,0.0009009]
[1724823901191,1.2001279,59583.0,59582.0,0.0009009]
[1724823901426,1.22242731,59583.0,59582.0,0.0009009]
[1724823901647,1.22242532,59583.0,59582.0,0.0009009]
[1724823901875,1.19712591,59583.0,59582.0,0.0009009]
[1724823902099,1.20012591,59583.0,59582.0,0.0009009]
[1724823902325,1.4603086,59583.0,59582.0,0.0009009]
[1724823902572,1.51062646,59583.0,59582.0,0.0009009]
[1724823903011,0.9568096,59583.0,59582.0,0.0009009]
[1724823903225,0.4493096,59583.0,59582.0,0.0009009]
[1724823903421,0.4492591,59583.0,59582.0,0.0009009]
[1724823905411,0.4492591,59583.0,59582.0,0.05208097]
[1724823906717,0.4492591,59583.0,59582.0,0.0009009]
[1724823912166,0.4500781,59583.0,59582.0,0.0009009]
[1724823914663,0.85627182,59583.0,59582.0,0.0009009]
[1724823914885,0.93290387,59583.0,59582.0,0.0009009]
[1724823916241,0.88256937,59583.0,59582.0,0.0009009]
[1724823916637,0.93290561,59583.0,59582.0,0.0009009]
[1724823916830,0.88256937,59583.0,59582.0,0.0009009]
[1724823917303,0.93290561,59583.0,59582.0,0.0009009]
[1724823917802,0.88256937,59583.0,59582.0,0.0009009]
[1724823918007,0.85627182,59583.0,59582.0,0.0009009]
[1724823920762,1.43643478,59583.0,59582.0,0.0009009]
[1724823921017,1.63333504,59583.0,59582.0,0.0009009]
[1724823921354,1.58296803,59583.0,59582.0,0.0009009]
[1724823922526,1.68370206,59583.0,59582.0,0.0009009]
[1724823923002,1.58296803,59583.0,59582.0,0.0009009]
[1724823923416,1.68370206,59583.0,59582.0,0.0009009]
[1724823924878,1.80085942,59583.0,59582.0,0.0009009]
[1724823925544,1.70012539,59583.0,59582.0,0.0009009]
[1724823928050,1.02086803,59583.0,59582.0,0.0009009]
[1724823931197,0.68520203,59583.0,59582.0,0.0009009]
[1724823931537,1.02086803,59583.0,59582.0,0.0009009]
[1724823933072,0.68520203,59583.0,59582.0,0.0009009]
[1724823933277,0.68520203,59583.0,59582.0,0.1868009]
[1724823933278,0.50050286,59583.0,59582.0,0.1868009]
[1724823933411,0.50050286,59583.0,59582.0,0.5382009]
[1724823933624,0.4500781,59583.0,59582.0,0.5382009]
[1724823934413,0.3501286,59583.0,59582.0,0.5382009]
[1724823936275,0.3501286,59583.0,59582.0,0.56266401]
[1724823936830,0.3501286,59583.0,59582.0,0.5382009]
[1724823937055,0.40054586,59583.0,59582.0,0.5382009]
[1724823937278,0.40054586,59583.0,59582.0,0.3523009]
[1724823937936,0.40054549,59583.0,59582.0,0.3523009]
[1724823938393,0.40054485,59583.0,59582.0,0.3523009]
[1724823940239,0.3501286,59583.0,59582.0,0.3523009]
[1724823940616,0.40054382,59583.0,59582.0,0.3523009]
[1724823941046,0.3501286,59583.0,59582.0,0.3523009]
[1724823941269,0.3501286,59583.0,59582.0,0.0009009]
[1724823941487,0.40054382,59583.0,59582.0,0.0009009]
[1724823941663,0.3501286,59583.0,59582.0,0.0009009]
[1724823942427,0.40054411,59583.0,59582.0,0.0009009]
[1724823943108,0.3501286,59583.0,59582.0,0.0009009]
[1724823943261,0.40054321,59583.0,59582.0,0.0009009]
[1724823943477,0.3501286,59583.0,59582.0,0.0009009]
[1724823944869,0.42576667,59583.0,59582.0,0.0009009]
[1724823945090,0.3501286,59583.0,59582.0,0.0009009]
[1724823945535,0.40054458,59583.0,59582.0,0.0009009]
[1724823945738,0.59358558,59583.0,59582.0,0.0009009]
[1724823945941,0.95348558,59583.0,59582.0,0.0009009]
[1724823946068,1.23982459,59583.0,59582.0,0.0009009]
[1724823946279,1.67632256,59583.0,59582.0,0.0009009]
[1724823946480,1.96452256,59583.0,59582.0,0.2009009]
[1724823947112,1.86369059,59583.0,59582.0,0.2009009]
[1724823947541,1.52802459,59583.0,59582.0,0.2009009]
[1724823948204,1.62887015,59583.0,59582.0,0.2009009]
[1724823948408,1.52802459,59583.0,59582.0,0.2009009]
[1724823948851,1.2174642,59583.0,59582.0,0.2009009]
[1724823949081,1.5531302,59583.0,59582.0,0.2009009]
[1724823949971,1.2892936,59583.0,59582.0,0.2009009]
[1724823950503,0.5257652,59583.0,59582.0,0.5606009]
[1724823950731,0.4501286,59583.0,59582.0,0.5606009]
[1724823950947,0.3501286,59583.0,59582.0,0.5606009]
[1724823951148,0.3501286,59583.0,59582.0,0.7475009]
[1724823953336,0.40055288,59583.0,59582.0,0.7475009]
[1724823954591,0.3501286,59583.0,59582.0,0.7475009]
[1724823955277,0.40054755,59583.0,59582.0,0.7475009]
[1724823955678,0.3501286,59583.0,59582.0,0.7475009]
[1724823956727,0.40054755,59583.0,59582.0,0.7475009]
[1724823956955,0.3501286,59583.0,59582.0,0.7475009]
[1724823967177,0.3501286,59583.0,59582.0,0.9153359]
[1724823967378,0.3501286,59583.0,59582.0,0.7475009]
[1724823967593,0.343184,59583.0,59582.0,0.9153359]
[1724823967794,0.343184,59583.0,59582.0,0.7475009]
[1724823968052,0.3498203,59583.0,59582.0,1.9560089]
[1724823968280,0.3498203,59583.0,59582.0,2.11390054]
[1724823968577,0.343184,59583.0,59582.0,2.11390054]
[1724823968795,0.340184,59583.0,59582.0,2.11390054]
[1724823969245,0.339184,59583.0,59582.0,2.11390054]
[1724823969458,0.339184,59583.0,59582.0,2.14756054]
[1724823969694,0.340184,59583.0,59582.0,2.14756054]
[1724823969896,0.336184,59583.0,59582.0,2.14756054]
[1724823970156,0.338184,59583.0,59582.0,2.49323154]
[1724823970358,0.50540786,59606.0,59598.0,0.503371]
[1724823970559,0.504188,59599.0,59598.0,1.19838542]
[1724823970782,0.504188,59599.0,59598.0,1.19738542]
[1724823970998,0.504188,59599.0,59598.0,0.86180442]
[1724823970999,0.51084984,59599.0,59598.0,0.86180442]
[1724823971237,0.504188,59599.0,59598.0,0.86180442]
[1724823971470,0.51090126,59599.0,59598.0,0.86180442]
[1724823971728,0.51090126,59599.0,59598.0,1.19738542]
[1724823971942,0.51090126,59599.0,59598.0,1.31612426]
[1724823972183,0.51090126,59599.0,59598.0,1.19900984]
[1724823972824,0.51090126,59599.0,59598.0,1.20200984]
[1724823973049,0.51090126,59599.0,59598.0,1.20100984]
[1724823973694,0.51090126,59599.0,59598.0,1.53659084]
[1724823974142,0.504188,59599.0,59598.0,1.53659084]
[1724823974358,0.51091233,59599.0,59598.0,1.20100984]
[1724823974979,0.51091233,59599.0,59598.0,1.22610718]
[1724823977201,0.51091233,59599.0,59598.0,0.02809734]
[1724823977417,0.51091233,59599.0,59598.0,0.003]
[1724823980090,0.51091233,59599.0,59595.0,0.19206992]
[1724823981104,0.51091233,59599.0,59596.0,0.3447]
[1724823981742,0.51091233,59599.0,59598.0,0.002]
[1724823981743,1.20820233,59599.0,59598.0,0.002]
[1724823981938,1.54377833,59599.0,59598.0,0.002]
[1724823982164,1.37598833,59599.0,59589.0,0.3456]
[1724823982343,0.167799,59595.0,59589.0,0.3456]
[1724823982543,0.510095,59594.0,59589.0,0.3456]
[1724823982938,0.02631933,59593.0,59589.0,0.3456]
[1724823983155,0.51012881,59592.0,59588.0,0.49460121]
[1724823983368,0.70072686,59592.0,59588.0,0.57930363]
[1724823983520,0.70072686,59592.0,59589.0,0.002]
[1724823983750,0.50992686,59592.0,59589.0,0.002]
[1724823984796,0.51092686,59592.0,59589.0,0.002]
[1724823984997,0.51092686,59592.0,59588.0,0.55520242]
[1724823985195,0.51092686,59592.0,59589.0,0.11169654]
[1724823985396,0.51192686,59592.0,59590.0,0.364]
[1724823985681,0.51192686,59592.0,59590.0,0.531813]
[1724823985880,0.51192686,59592.0,59590.0,0.364]
[1724823986291,0.51192686,59592.0,59590.0,0.531811]
[1724823986494,0.51192686,59592.0,59589.0,0.11169654]
[1724823986495,0.51092686,59592.0,59591.0,1.4963962]
[1724823986695,0.50992686,59592.0,59591.0,1.370952]
[1724823986931,0.51092686,59592.0,59591.0,1.370952]
[1724823987124,0.51092686,59592.0,59591.0,1.035331]
[1724823987548,0.50992686,59592.0,59591.0,1.370952]
[1724823987989,0.51092686,59592.0,59591.0,1.370952]
[1724823988279,0.51192686,59592.0,59591.0,1.370952]
[1724823988713,0.51092686,59592.0,59591.0,1.370952]
[1724823989069,0.51192686,59592.0,59591.0,1.376952]
[1724823989690,0.51192686,59592.0,59591.0,1.54550364]
[1724823991436,0.000818,59599.0,59598.0,0.74605]
[1724823991664,0.000818,59599.0,59598.0,1.73282115]
[1724823991843,0.000818,59599.0,59598.0,2.06840215]
[1724823992058,0.000818,59599.0,59598.0,2.23695379]
[1724823992521,0.000818,59599.0,59598.0,2.57753479]
[1724823992721,0.001818,59599.0,59598.0,2.58353479]
[1724823993086,0.000818,59599.0,59598.0,2.57753479]
[1724823993483,0.001818,59599.0,59598.0,2.58053479]
[1724823993907,0.02631212,59621.0,59620.0,0.167728]
[1724823994084,0.52949212,59621.0,59620.0,0.93530387]
[1724823994291,0.50318,59621.0,59620.0,0.93530387]
[1724823994511,0.50930151,59621.0,59620.0,0.93530387]
[1724823994667,0.50930151,59621.0,59620.0,1.29300387]
[1724823995276,0.50930151,59621.0,59620.0,1.29200387]
[1724823995683,0.50930151,59621.0,59620.0,0.95654687]
[1724823995889,0.53560865,59621.0,59616.0,0.3717]
[1724823996104,0.1858,59620.0,59614.0,0.03366]
[1724823996319,0.50318,59619.0,59614.0,0.03366]
[1724823996526,0.50932809,59619.0,59611.0,0.3717]
[1724823996730,0.50932809,59619.0,59611.0,0.539453]
[1724823996935,0.50932809,59619.0,59611.0,0.3717]
[1724823997340,0.50932809,59619.0,59612.0,0.22798137]
[1724823997475,0.50932809,59619.0,59614.0,0.005]
[1724823997670,0.50932809,59619.0,59612.0,0.22798137]
[1724823998080,0.51032809,59619.0,59612.0,0.22798137]
[1724823998439,0.51032809,59619.0,59614.0,0.009]
[1724823998828,0.51032809,59619.0,59612.0,0.16775]
[1724823999027,0.51132809,59619.0,59612.0,0.17775]
[1724823999695,0.51132809,59619.0,59614.0,0.005]
[1724823999839,0.50932809,59619.0,59612.0,0.16775]
[1724824000061,0.51032809,59619.0,59614.0,0.01]
[1724824000307,0.67906009,59619.0,59614.0,0.01]
[1724824000511,0.51132809,59619.0,59614.0,0.01]
[1724824000935,0.3791,59618.0,59614.0,0.01]
[1724824001141,0.50318,59617.0,59612.0,0.16775]
[1724824001266,0.50931256,59617.0,59614.0,0.005]
[1724824002324,0.51031256,59617.0,59614.0,0.005]
[1724824002774,0.51031256,59617.0,59612.0,0.012]
[1724824002994,0.51031256,59617.0,59614.0,0.005]
[1724824003241,0.51131256,59617.0,59614.0,0.017]
[1724824003938,0.51031256,59617.0,59614.0,0.012]
[1724824004149,0.51131256,59617.0,59614.0,0.012]
[1724824004586,0.51031256,59617.0,59612.0,0.16775]
[1724824005013,0.51131256,59617.0,59612.0,0.17975]
[1724824005616,0.51131256,59617.0,59612.0,0.012]
[1724824006217,0.51131256,59617.0,59614.0,0.005]
[1724824006218,0.51231256,59617.0,59614.0,0.005]
[1724824006645,0.51031256,59617.0,59612.0,0.17975]
[1724824006798,0.51131256,59617.0,59612.0,0.18475]
[1724824007208,0.51031256,59617.0,59612.0,0.17975]
[1724824007427,0.51131256,59617.0,59614.0,0.005]
[1724824007644,0.67805056,59617.0,59614.0,0.005]
[1724824007853,0.1941,59609.0,59604.0,0.4705]
[1724824008245,0.5090774,59608.0,59601.0,0.3672]
[1724824008417,0.5090774,59608.0,59604.0,0.167773]
[1724824008629,0.3561,59607.0,59598.0,0.3570998]
[1724824008838,0.50318,59606.0,59602.0,0.167778]
[1724824009042,0.5090774,59606.0,59602.0,0.167778]
[1724824009589,0.5090774,59606.0,59599.0,0.167787]
[1724824009789,0.5090774,59606.0,59598.0,0.3570998]
[1724824009790,0.33555,59604.0,59598.0,0.0008998]
[1724824010019,0.3529,59602.0,59598.0,0.0008998]
[1724824010217,0.670963,59601.0,59598.0,0.0008998]
[1724824010420,0.6768604,59601.0,59598.0,0.0008998]
[1724824011435,0.70317573,59601.0,59598.0,0.0048998]
[1724824011635,0.167786,59600.0,59598.0,0.0048998]
[1724824011833,0.50318,59599.0,59598.0,0.0048998]
[1724824012109,0.50318,59599.0,59598.0,0.0128998]
[1724824012323,0.5090774,59599.0,59598.0,0.0128998]
[1724824012531,0.5090774,59599.0,59598.0,0.0048998]
[1724824012959,0.5090774,59599.0,59598.0,0.0088998]
[1724824013109,0.5090774,59599.0,59598.0,0.0138998]
[1724824013322,0.6768654,59599.0,59598.0,0.0138998]
[1724824013524,0.6768654,59599.0,59598.0,0.0088998]
[1724824013682,1.5298174,59599.0,59598.0,0.0138998]
[1724824014138,1.8847174,59599.0,59598.0,0.0138998]
[1724824014339,1.0457774,59599.0,59598.0,0.0058998]
[1724824014555,1.2145654,59599.0,59598.0,0.0148998]
[1724824014972,0.6788654,59599.0,59598.0,0.0148998]
[1724824015171,0.6778654,59599.0,59598.0,0.0058998]
[1724824015377,0.5120774,59599.0,59598.0,0.04449978]
[1724824015825,0.5100774,59599.0,59598.0,0.04449978]
[1724824016000,0.5090774,59599.0,59598.0,0.03949978]
[1724824016205,0.5140774,59599.0,59598.0,0.03949978]
[1724824016893,0.5140774,59599.0,59598.0,0.0048998]
[1724824017227,0.6818654,59599.0,59598.0,0.0048998]
[1724824017854,0.5140774,59599.0,59598.0,0.0048998]
[1724824018055,0.5120774,59599.0,59598.0,0.0048998]
[1724824018257,0.5120774,59599.0,59598.0,0.0208998]
[1724824018258,0.6798654,59599.0,59598.0,0.0208998]
[1724824018459,0.6798654,59599.0,59598.0,0.0258998]
[1724824019122,1.3914414,59599.0,59598.0,0.0258998]
[1724824019337,2.3616934,59599.0,59598.0,0.0258998]
[1724824019749,2.38798566,59599.0,59598.0,0.0258998]
[1724824020144,2.48965939,59599.0,59598.0,0.0258998]
[1724824020581,2.48665939,59599.0,59598.0,0.0218998]
[1724824020795,2.75188043,59599.0,59598.0,0.0218998]
[1724824021006,2.88147204,59599.0,59598.0,0.0218998]
[1724824021221,2.75588043,59599.0,59598.0,0.0218998]
[1724824021428,2.75588043,59599.0,59598.0,0.0168998]
[1724824021640,2.88443154,59599.0,59598.0,0.0168998]
[1724824021890,2.85431765,59599.0,59598.0,0.0168998]
[1724824022105,2.75088043,59599.0,59598.0,0.0168998]
[1724824022311,2.41130443,59599.0,59598.0,0.0168998]
[1724824022531,2.50061286,59599.0,59598.0,0.0178998]
[1724824022750,2.51461286,59599.0,59598.0,0.0178998]
[1724824022952,2.48661286,59599.0,59598.0,0.0168998]
[1724824023362,2.50061286,59599.0,59598.0,0.0168998]
[1724824023564,2.42530443,59599.0,59598.0,0.0168998]
[1724824023771,2.41130443,59599.0,59598.0,0.0168998]
[1724824023979,2.76588043,59599.0,59598.0,0.0168998]
[1724824024212,2.84118489,59599.0,59598.0,0.0168998]
[1724824024415,2.84115653,59599.0,59598.0,0.0168998]
[1724824024629,2.85515653,59599.0,59598.0,0.0178998]
[1724824024845,2.88028638,59599.0,59598.0,0.0178998]
[1724824025077,2.88028638,59599.0,59598.0,0.0168998]
[1724824025078,2.76588043,59599.0,59598.0,0.0168998]
[1724824025313,2.89494796,59599.0,59598.0,0.0168998]
[1724824025518,2.78344052,59599.0,59598.0,0.0178998]
[1724824025728,2.79744052,59599.0,59598.0,0.0178998]
[1724824025925,2.76944052,59599.0,59598.0,0.0168998]
[1724824026339,2.79744052,59599.0,59598.0,0.0178998]
[1724824026545,2.88376056,59599.0,59598.0,0.0178998]
[1724824026762,2.78344052,59599.0,59598.0,0.0178998]
[1724824026969,2.79744052,59599.0,59598.0,0.0178998]
[1724824027170,2.78344052,59599.0,59598.0,0.0178998]
[1724824027385,2.88373501,59599.0,59598.0,0.0178998]
[1724824027587,2.86973501,59599.0,59598.0,0.0168998]
[1724824027935,2.88373501,59599.0,59598.0,0.0178998]
[1724824028367,2.78344052,59599.0,59598.0,0.0178998]
[1724824028538,2.79744052,59599.0,59598.0,0.0178998]
[1724824028945,2.78344052,59599.0,59598.0,0.0178998]
[1724824029187,2.79744052,59599.0,59598.0,0.0178998]
[1724824029758,2.87262828,59599.0,59598.0,0.0178998]
[1724824030021,2.79744052,59599.0,59598.0,0.0178998]
[1724824030432,2.87261307,59599.0,59598.0,0.0178998]
[1724824030991,3.20818907,59599.0,59598.0,0.0178998]
[1724824031371,3.13301652,59599.0,59598.0,0.0178998]
[1724824032408,3.18311301,59599.0,59598.0,0.0178998]
[1724824034516,3.13301652,59599.0,59598.0,0.0178998]
[1724824036925,3.13281465,59599.0,59598.0,0.0178998]
[1724824044472,3.18287094,59599.0,59598.0,0.0178998]
[1724824045507,3.13281465,59599.0,59598.0,0.0178998]
[1724824046066,3.18292597,59599.0,59598.0,0.0178998]
[1724824046615,3.13281465,59599.0,59598.0,0.0178998]
[1724824047530,3.20789909,59599.0,59598.0,0.0178998]
[1724824049343,3.13281465,59599.0,59598.0,0.0178998]
[1724824050382,3.23292723,59599.0,59598.0,0.0178998]
[1724824051396,3.25795538,59599.0,59598.0,0.0178998]
[1724824052170,3.15581465,59599.0,59598.0,0.0178998]
[1724824052368,2.93431572,59594.0,59593.0,0.0008998]
[1724824052638,3.85619526,59594.0,59593.0,0.0008998]
[1724824052782,3.98740155,59594.0,59593.0,0.0008998]
[1724824053172,3.86185983,59594.0,59593.0,0.0008998]
[1724824053598,3.86185983,59594.0,59593.0,0.0018998]
[1724824053815,3.87085983,59594.0,59593.0,0.0018998]
[1724824054069,3.89385983,59594.0,59593.0,0.0018998]
[1724824054500,3.90485983,59594.0,59593.0,0.0018998]
[1724824054911,3.89385983,59594.0,59593.0,0.0018998]
[1724824055084,3.88485983,59594.0,59593.0,0.0008998]
[1724824055430,4.38505091,59594.0,59593.0,8e-07]
[1724824055660,4.24846383,59594.0,59593.0,8e-07]
[1724824056650,4.25966375,59594.0,59593.0,8e-07]
[1724824056863,4.27366375,59594.0,59593.0,8e-07]
[1724824057741,4.25966375,59594.0,59593.0,8e-07]
[1724824057960,4.27366375,59594.0,59593.0,8e-07]
[1724824058439,4.25966375,59594.0,59593.0,8e-07]
[1724824059067,4.27366375,59594.0,59593.0,8e-07]
[1724824059277,3.24926587,59583.0,59582.0,0.2009009]
[1724824059506,3.90153626,59583.0,59582.0,0.0330659]
[1724824059933,3.92468251,59583.0,59582.0,0.0330659]